[Event "Late-Titled-Tuesday-Blitz-October-17-2023"]
[Site "Chess.com"]
[Date "2023.10.17"]
[Round "7"]
[White "jamengrand"]
[Black "dadice10"]
[Result "1/2-1/2"]
[WhiteElo "2329"]
[BlackElo "2215"]
[TimeControl "180+1"]
[EndTime "15:15:04 PDT"]
[Termination "Game drawn by repetition"]

1. e4 {[%clk 0:03:00.9]} 1... d5 {[%clk 0:02:59.7]} 2. exd5 {[%clk 0:03:00.7]}
2... Nf6 {[%clk 0:02:59.6]} 3. d4 {[%clk 0:02:59.5]} 3... Nxd5 {[%clk 0:02:59]}
4. c4 {[%clk 0:02:59.2]} 4... Nb6 {[%clk 0:02:57.6]} 5. c5 {[%clk 0:02:58.5]}
5... Nd5 {[%clk 0:02:56]} 6. Qb3 {[%clk 0:02:58.7]} 6... g6 {[%clk 0:02:52]} 7.
Bc4 {[%clk 0:02:56.5]} 7... c6 {[%clk 0:02:48]} 8. Nf3 {[%clk 0:02:55.6]} 8...
Bg7 {[%clk 0:02:46.5]} 9. O-O {[%clk 0:02:55.7]} 9... O-O {[%clk 0:02:45.1]} 10.
Re1 {[%clk 0:02:55.7]} 10... b5 {[%clk 0:02:37.6]} 11. Bxd5 {[%clk 0:02:48.6]}
11... Qxd5 {[%clk 0:02:34.2]} 12. Qxd5 {[%clk 0:02:33.6]} 12... cxd5 {[%clk
0:02:35.1]} 13. Nc3 {[%clk 0:02:33.8]} 13... Nc6 {[%clk 0:02:30.5]} 14. Nxd5
{[%clk 0:02:29.2]} 14... Bg4 {[%clk 0:02:22.5]} 15. Nxe7+ {[%clk 0:02:16.7]}
15... Nxe7 {[%clk 0:02:19.9]} 16. Rxe7 {[%clk 0:02:17.6]} 16... Bxf3 {[%clk
0:02:19.2]} 17. gxf3 {[%clk 0:02:17.1]} 17... Bxd4 {[%clk 0:02:19.2]} 18. Be3
{[%clk 0:02:17]} 18... Bxb2 {[%clk 0:02:15.5]} 19. Rb1 {[%clk 0:02:16.4]} 19...
Bf6 {[%clk 0:02:14.4]} 20. Rb7 {[%clk 0:02:07]} 20... a6 {[%clk 0:02:13.4]} 21.
Rb6 {[%clk 0:02:03.6]} 21... Bd8 {[%clk 0:02:04.6]} 22. Rc6 {[%clk 0:02:01]}
22... Ba5 {[%clk 0:01:51.4]} 23. Rd1 {[%clk 0:01:54.2]} 23... Rfd8 {[%clk
0:01:43.5]} 24. Rxd8+ {[%clk 0:01:41.1]} 24... Bxd8 {[%clk 0:01:40.9]} 25. Bh6
{[%clk 0:01:41.6]} 25... Be7 {[%clk 0:01:37.2]} 26. Kf1 {[%clk 0:01:22.4]} 26...
a5 {[%clk 0:01:35.5]} 27. Rb6 {[%clk 0:01:16.9]} 27... Bxc5 {[%clk 0:01:31.6]}
28. Rxb5 {[%clk 0:01:17]} 28... Bf8 {[%clk 0:01:28.8]} 29. Bxf8 {[%clk 0:01:06]}
29... Kxf8 {[%clk 0:01:29.7]} 30. a4 {[%clk 0:01:06]} 30... Ke7 {[%clk
0:01:22.6]} 31. f4 {[%clk 0:01:06.2]} 31... Kf6 {[%clk 0:01:21.8]} 32. h4 {[%clk
0:01:05.4]} 32... h5 {[%clk 0:01:21.6]} 33. Kg2 {[%clk 0:01:05.2]} 33... Ke6
{[%clk 0:01:21.4]} 34. f5+ {[%clk 0:01:02.2]} 34... gxf5 {[%clk 0:01:19.4]} 35.
Kf3 {[%clk 0:01:02.5]} 35... Rg8 {[%clk 0:01:10.7]} 36. Rb6+ {[%clk 0:00:17.9]}
36... Ke5 {[%clk 0:01:09.4]} 37. Rb5+ {[%clk 0:00:18]} 37... Ke6 {[%clk
0:01:08.6]} 38. Rb6+ {[%clk 0:00:13]} 38... Ke5 {[%clk 0:01:08.6]} 39. Rb5+
{[%clk 0:00:12.8]} 39... Ke6 {[%clk 0:01:08.7]} 1/2-1/2

[Event "Late-Titled-Tuesday-Blitz-October-17-2023"]
[Site "Chess.com"]
[Date "2023.10.17"]
[Round "7"]
[White "wanyaland"]
[Black "Sokoloco"]
[Result "1-0"]
[WhiteElo "2473"]
[BlackElo "2682"]
[TimeControl "180+1"]
[EndTime "15:15:05 PDT"]
[Termination "wanyaland won on time"]

1. d4 {[%clk 0:03:00.9]} 1... d5 {[%clk 0:02:29.7]} 2. c4 {[%clk 0:02:58.9]}
2... e6 {[%clk 0:02:28.9]} 3. Nc3 {[%clk 0:02:58.4]} 3... c6 {[%clk 0:02:29.3]}
4. e3 {[%clk 0:02:56.2]} 4... f5 {[%clk 0:02:28.4]} 5. Nf3 {[%clk 0:02:54]} 5...
Nd7 {[%clk 0:02:28.1]} 6. g3 {[%clk 0:02:53.7]} 6... Ngf6 {[%clk 0:02:28]} 7.
Qd3 {[%clk 0:02:53.2]} 7... Ne4 {[%clk 0:02:27.7]} 8. Bg2 {[%clk 0:02:53.6]}
8... g5 {[%clk 0:02:25.1]} 9. O-O {[%clk 0:02:51.3]} 9... Qf6 {[%clk 0:02:22.8]}
10. Nd2 {[%clk 0:02:50.9]} 10... h5 {[%clk 0:02:19.4]} 11. f3 {[%clk 0:02:51.1]}
11... Nxd2 {[%clk 0:02:10.1]} 12. Bxd2 {[%clk 0:02:50]} 12... h4 {[%clk
0:02:10.3]} 13. e4 {[%clk 0:02:49.4]} 13... hxg3 {[%clk 0:02:04.8]} 14. hxg3
{[%clk 0:02:49]} 14... Bd6 {[%clk 0:01:47.5]} 15. e5 {[%clk 0:02:37.4]} 15...
Bxe5 {[%clk 0:01:25.8]} 16. dxe5 {[%clk 0:02:35.6]} 16... Nxe5 {[%clk
0:01:26.7]} 17. Qe2 {[%clk 0:02:20.7]} 17... Nxc4 {[%clk 0:01:24.9]} 18. Rae1
{[%clk 0:02:19.2]} 18... Bd7 {[%clk 0:01:13.2]} 19. Bc1 {[%clk 0:02:15.2]} 19...
O-O-O {[%clk 0:01:12.3]} 20. b3 {[%clk 0:02:06.8]} 20... Nb6 {[%clk 0:00:56.8]}
21. Qe5 {[%clk 0:02:04.4]} 21... Qg6 {[%clk 0:00:55.2]} 22. a4 {[%clk
0:01:58.1]} 22... Na8 {[%clk 0:00:53.8]} 23. Be3 {[%clk 0:01:51.3]} 23... b6
{[%clk 0:00:51.5]} 24. a5 {[%clk 0:01:50.6]} 24... c5 {[%clk 0:00:46.7]} 25.
axb6 {[%clk 0:01:46.8]} 25... axb6 {[%clk 0:00:47.6]} 26. Ra1 {[%clk 0:01:43.5]}
26... Kb7 {[%clk 0:00:46.5]} 27. b4 {[%clk 0:01:28.6]} 27... cxb4 {[%clk
0:00:28.8]} 28. Ne2 {[%clk 0:01:20.6]} 28... Bb5 {[%clk 0:00:27.3]} 29. Bd4
{[%clk 0:01:09.2]} 29... Nc7 {[%clk 0:00:20.6]} 30. Ra7+ {[%clk 0:01:04.3]} 1-0

[Event "Late-Titled-Tuesday-Blitz-October-17-2023"]
[Site "Chess.com"]
[Date "2023.10.17"]
[Round "7"]
[White "micke12a"]
[Black "arminmusovic"]
[Result "1-0"]
[WhiteElo "2383"]
[BlackElo "2467"]
[TimeControl "180+1"]
[EndTime "15:15:06 PDT"]
[Termination "micke12a won by resignation"]

1. d4 {[%clk 0:02:58.8]} 1... d5 {[%clk 0:02:57.3]} 2. Nc3 {[%clk 0:02:58.9]}
2... a6 {[%clk 0:02:56.1]} 3. e4 {[%clk 0:02:56.6]} 3... dxe4 {[%clk 0:02:56.5]}
4. Nxe4 {[%clk 0:02:56.5]} 4... Nf6 {[%clk 0:02:57.2]} 5. Nxf6+ {[%clk
0:02:55.5]} 5... exf6 {[%clk 0:02:58.1]} 6. Nf3 {[%clk 0:02:54.2]} 6... Bd6
{[%clk 0:02:58.5]} 7. Bd3 {[%clk 0:02:54.3]} 7... O-O {[%clk 0:02:58.8]} 8. O-O
{[%clk 0:02:53.9]} 8... Bg4 {[%clk 0:02:58.8]} 9. h3 {[%clk 0:02:53.9]} 9... Bh5
{[%clk 0:02:58.4]} 10. Re1 {[%clk 0:02:54.3]} 10... Nd7 {[%clk 0:02:54.6]} 11.
c3 {[%clk 0:02:54.1]} 11... Re8 {[%clk 0:02:53.4]} 12. Be3 {[%clk 0:02:52.9]}
12... Nf8 {[%clk 0:02:53.6]} 13. Be2 {[%clk 0:02:52.6]} 13... c6 {[%clk
0:02:53.5]} 14. Nd2 {[%clk 0:02:52]} 14... Bg6 {[%clk 0:02:53.6]} 15. Bh5 {[%clk
0:02:49.2]} 15... Rc8 {[%clk 0:02:51.9]} 16. Bxg6 {[%clk 0:02:48.9]} 16... hxg6
{[%clk 0:02:49.7]} 17. Qf3 {[%clk 0:02:46.8]} 17... Ne6 {[%clk 0:02:47.2]} 18.
Rad1 {[%clk 0:02:46.5]} 18... Bb8 {[%clk 0:02:46.7]} 19. Ne4 {[%clk 0:02:44.5]}
19... Qc7 {[%clk 0:02:45.3]} 20. g3 {[%clk 0:02:43.2]} 20... Rcd8 {[%clk
0:02:39.7]} 21. Nc5 {[%clk 0:02:40.3]} 21... Nxc5 {[%clk 0:02:35.1]} 22. dxc5
{[%clk 0:02:39.3]} 22... Qa5 {[%clk 0:02:32]} 23. a3 {[%clk 0:02:34.7]} 23...
Qa4 {[%clk 0:02:32.1]} 24. Bd4 {[%clk 0:02:24.3]} 24... Qc2 {[%clk 0:02:24.8]}
25. b4 {[%clk 0:02:17.4]} 25... Qa2 {[%clk 0:02:10.2]} 26. Ra1 {[%clk
0:02:09.5]} 26... Rxe1+ {[%clk 0:02:02.8]} 27. Rxe1 {[%clk 0:02:10.4]} 27...
Qxa3 {[%clk 0:02:01.1]} 28. Re7 {[%clk 0:02:08.2]} 28... a5 {[%clk 0:01:49.9]}
29. b5 {[%clk 0:01:48.5]} 29... a4 {[%clk 0:01:22.6]} 30. Rxb7 {[%clk 0:01:45]}
30... cxb5 {[%clk 0:01:11.3]} 31. c6 {[%clk 0:01:32.5]} 31... Qd6 {[%clk
0:01:11.5]} 32. Rxb5 {[%clk 0:01:26.4]} 32... Bc7 {[%clk 0:01:05.3]} 33. Qd1
{[%clk 0:01:13.4]} 33... Qxc6 {[%clk 0:00:59.4]} 34. Qxa4 {[%clk 0:01:12.1]}
34... Re8 {[%clk 0:01:00.1]} 35. Kh2 {[%clk 0:00:34.3]} 35... Ra8 {[%clk
0:00:57.1]} 36. Rb8+ {[%clk 0:00:28.8]} 1-0

[Event "Late-Titled-Tuesday-Blitz-October-17-2023"]
[Site "Chess.com"]
[Date "2023.10.17"]
[Round "7"]
[White "GlavkonVVS"]
[Black "Schwindle"]
[Result "1-0"]
[WhiteElo "2544"]
[BlackElo "2404"]
[TimeControl "180+1"]
[EndTime "15:15:11 PDT"]
[Termination "GlavkonVVS won by checkmate"]

1. c4 {[%clk 0:03:00.9]} 1... Nf6 {[%clk 0:02:58.8]} 2. Nc3 {[%clk 0:03:01.1]}
2... c6 {[%clk 0:02:57.7]} 3. Nf3 {[%clk 0:03:00.6]} 3... d5 {[%clk 0:02:57.8]}
4. d4 {[%clk 0:03:01.2]} 4... dxc4 {[%clk 0:02:57.4]} 5. a4 {[%clk 0:03:00.9]}
5... Bf5 {[%clk 0:02:57.1]} 6. e3 {[%clk 0:03:01.1]} 6... e6 {[%clk 0:02:57]} 7.
Bxc4 {[%clk 0:03:01]} 7... Nbd7 {[%clk 0:02:57.5]} 8. O-O {[%clk 0:03:00.9]}
8... Bb4 {[%clk 0:02:56.7]} 9. Ne2 {[%clk 0:03:00.4]} 9... O-O {[%clk
0:02:56.2]} 10. b3 {[%clk 0:03:00.4]} 10... Bg4 {[%clk 0:02:47.5]} 11. Ng3
{[%clk 0:02:58.2]} 11... Qc7 {[%clk 0:02:40.5]} 12. h3 {[%clk 0:02:57.9]} 12...
Bxf3 {[%clk 0:02:39.3]} 13. Qxf3 {[%clk 0:02:57.1]} 13... Bd6 {[%clk 0:02:33.4]}
14. Bb2 {[%clk 0:02:51.3]} 14... Rab8 {[%clk 0:02:10.3]} 15. Rac1 {[%clk
0:02:46.9]} 15... Qd8 {[%clk 0:01:53.8]} 16. Rfd1 {[%clk 0:02:35.9]} 16... Qe7
{[%clk 0:01:53.4]} 17. e4 {[%clk 0:02:34.8]} 17... Ba3 {[%clk 0:01:47.9]} 18.
Bxa3 {[%clk 0:02:26.6]} 18... Qxa3 {[%clk 0:01:47.6]} 19. e5 {[%clk 0:02:26.6]}
19... Nd5 {[%clk 0:01:44.2]} 20. Ne4 {[%clk 0:02:26.4]} 20... f5 {[%clk
0:01:27.1]} 21. Nd6 {[%clk 0:02:23.4]} 21... a6 {[%clk 0:01:11.4]} 22. Bxd5
{[%clk 0:02:20.2]} 22... exd5 {[%clk 0:00:59.8]} 23. Nxf5 {[%clk 0:02:14.5]}
23... g6 {[%clk 0:00:52.2]} 24. Nh6+ {[%clk 0:02:13]} 24... Kg7 {[%clk
0:00:52.6]} 25. Qe3 {[%clk 0:02:13]} 25... Rbe8 {[%clk 0:00:46.6]} 26. Ng4
{[%clk 0:02:11.2]} 26... Kh8 {[%clk 0:00:39.6]} 27. Rc3 {[%clk 0:02:00.8]} 27...
Qe7 {[%clk 0:00:32.7]} 28. Qh6 {[%clk 0:01:55.4]} 28... Rf5 {[%clk 0:00:29.8]}
29. Rdd3 {[%clk 0:01:48.4]} 29... Ref8 {[%clk 0:00:26.9]} 30. Rf3 {[%clk
0:01:40.4]} 30... Qb4 {[%clk 0:00:23.6]} 31. Rcd3 {[%clk 0:01:11.6]} 31... Rh5
{[%clk 0:00:16.5]} 32. Qd2 {[%clk 0:01:09.6]} 32... Qe7 {[%clk 0:00:15.3]} 33.
Rxf8+ {[%clk 0:01:08.1]} 33... Nxf8 {[%clk 0:00:16.2]} 34. Rf3 {[%clk
0:01:08.1]} 34... Ne6 {[%clk 0:00:15.9]} 35. Nf6 {[%clk 0:01:08]} 35... Rf5
{[%clk 0:00:16.1]} 36. Rxf5 {[%clk 0:01:07.8]} 36... gxf5 {[%clk 0:00:17]} 37.
Qd3 {[%clk 0:01:06.4]} 37... Kg7 {[%clk 0:00:11.5]} 38. Qxf5 {[%clk 0:01:04.8]}
38... Nxd4 {[%clk 0:00:12.2]} 39. Qxh7+ {[%clk 0:01:04.7]} 39... Kf8 {[%clk
0:00:11.3]} 40. Qg8# {[%clk 0:01:05.5]} 1-0

[Event "Late-Titled-Tuesday-Blitz-October-17-2023"]
[Site "Chess.com"]
[Date "2023.10.17"]
[Round "7"]
[White "GaiozNigalidze"]
[Black "Fdpo95"]
[Result "1-0"]
[WhiteElo "2696"]
[BlackElo "2491"]
[TimeControl "180+1"]
[EndTime "15:15:13 PDT"]
[Termination "GaiozNigalidze won by resignation"]

1. d4 {[%clk 0:03:00.9]} 1... Nf6 {[%clk 0:02:58.1]} 2. c4 {[%clk 0:03:01.3]}
2... c5 {[%clk 0:02:58.5]} 3. d5 {[%clk 0:03:00.9]} 3... e6 {[%clk 0:02:59.3]}
4. Nc3 {[%clk 0:03:00.8]} 4... exd5 {[%clk 0:02:59.9]} 5. cxd5 {[%clk 0:03:01]}
5... d6 {[%clk 0:03:00.5]} 6. e4 {[%clk 0:03:01.5]} 6... g6 {[%clk 0:03:00.9]}
7. Bb5+ {[%clk 0:03:02.3]} 7... Nfd7 {[%clk 0:02:55.6]} 8. f4 {[%clk 0:03:02.1]}
8... Bg7 {[%clk 0:02:55.6]} 9. Nf3 {[%clk 0:03:02.4]} 9... O-O {[%clk
0:02:55.6]} 10. a4 {[%clk 0:03:02.8]} 10... Na6 {[%clk 0:02:55.7]} 11. O-O
{[%clk 0:03:02.5]} 11... Nb4 {[%clk 0:02:56]} 12. Bd2 {[%clk 0:03:02.9]} 12...
a6 {[%clk 0:02:56.2]} 13. Be2 {[%clk 0:03:02.3]} 13... Re8 {[%clk 0:02:56.1]}
14. Re1 {[%clk 0:03:02.8]} 14... f5 {[%clk 0:02:55]} 15. exf5 {[%clk 0:03:02.5]}
15... gxf5 {[%clk 0:02:55.9]} 16. Ng5 {[%clk 0:03:02.6]} 16... Nf6 {[%clk
0:02:56.1]} 17. Bf3 {[%clk 0:03:02.4]} 17... Ng4 {[%clk 0:02:16.9]} 18. Bxg4
{[%clk 0:02:42.7]} 18... fxg4 {[%clk 0:02:15.1]} 19. Ne6 {[%clk 0:02:42.2]}
19... Bxe6 {[%clk 0:02:04]} 20. Rxe6 {[%clk 0:02:41.1]} 20... Rxe6 {[%clk
0:02:00.6]} 21. dxe6 {[%clk 0:02:42]} 21... Bd4+ {[%clk 0:02:00.9]} 22. Kh1
{[%clk 0:02:41.2]} 22... Qh4 {[%clk 0:01:50.6]} 23. Ne4 {[%clk 0:02:37.8]} 23...
Nd3 {[%clk 0:01:37.5]} 24. Qb3 {[%clk 0:01:05.8]} 24... g3 {[%clk 0:01:11]} 25.
h3 {[%clk 0:01:01.9]} 25... Nxf4 {[%clk 0:00:44.5]} 26. e7+ {[%clk 0:01:00.5]}
26... Kh8 {[%clk 0:00:44.2]} 27. Qf7 {[%clk 0:00:45.5]} 27... Qh5 {[%clk
0:00:12.1]} 28. Qf8+ {[%clk 0:00:43.2]} 1-0

[Event "Late-Titled-Tuesday-Blitz-October-17-2023"]
[Site "Chess.com"]
[Date "2023.10.17"]
[Round "7"]
[White "Nekoo04"]
[Black "Necromon"]
[Result "0-1"]
[WhiteElo "2267"]
[BlackElo "2505"]
[TimeControl "180+1"]
[EndTime "15:15:20 PDT"]
[Termination "Necromon won on time"]

1. d4 {[%clk 0:03:00.9]} 1... Nf6 {[%clk 0:02:58.5]} 2. c4 {[%clk 0:02:56.6]}
2... c5 {[%clk 0:02:58.3]} 3. d5 {[%clk 0:02:44.1]} 3... b5 {[%clk 0:02:53.5]}
4. cxb5 {[%clk 0:02:43]} 4... a6 {[%clk 0:02:51.2]} 5. bxa6 {[%clk 0:02:43.9]}
5... g6 {[%clk 0:02:51.5]} 6. Nc3 {[%clk 0:02:41.8]} 6... Bg7 {[%clk 0:02:51.7]}
7. Nf3 {[%clk 0:02:42.4]} 7... d6 {[%clk 0:02:50.6]} 8. g3 {[%clk 0:02:43]} 8...
Bxa6 {[%clk 0:02:45.8]} 9. Bg2 {[%clk 0:02:43.1]} 9... O-O {[%clk 0:02:45.6]}
10. O-O {[%clk 0:02:43]} 10... Nbd7 {[%clk 0:02:46]} 11. Rb1 {[%clk 0:02:38.1]}
11... Qa5 {[%clk 0:02:45.1]} 12. Bd2 {[%clk 0:02:25.8]} 12... Rfb8 {[%clk
0:02:43.1]} 13. Qc2 {[%clk 0:02:10.5]} 13... Qc7 {[%clk 0:02:28.6]} 14. b3
{[%clk 0:01:58.7]} 14... Bb7 {[%clk 0:01:48.3]} 15. e4 {[%clk 0:01:42.5]} 15...
Ba6 {[%clk 0:01:38.5]} 16. Rfd1 {[%clk 0:01:25.3]} 16... Ng4 {[%clk 0:01:37.4]}
17. a4 {[%clk 0:01:18.5]} 17... Bd4 {[%clk 0:01:29.9]} 18. Be1 {[%clk
0:01:08.7]} 18... Bf6 {[%clk 0:01:11.3]} 19. h3 {[%clk 0:00:41.7]} 19... Nge5
{[%clk 0:01:10.8]} 20. Nxe5 {[%clk 0:00:41.3]} 20... Nxe5 {[%clk 0:01:07.8]} 21.
f4 {[%clk 0:00:41.5]} 21... Nd7 {[%clk 0:01:08]} 22. e5 {[%clk 0:00:20.7]} 22...
dxe5 {[%clk 0:01:06.5]} 23. d6 {[%clk 0:00:20.9]} 23... exd6 {[%clk 0:01:06.6]}
24. Nd5 {[%clk 0:00:18.2]} 24... Qd8 {[%clk 0:01:00.4]} 25. Nxf6+ {[%clk
0:00:17.8]} 25... Qxf6 {[%clk 0:01:00.7]} 26. Bxa8 {[%clk 0:00:17.9]} 26... Rxa8
{[%clk 0:01:00.9]} 27. Bc3 {[%clk 0:00:15.3]} 27... Bb7 {[%clk 0:00:54.9]} 28.
Qd2 {[%clk 0:00:12.5]} 28... d5 {[%clk 0:00:54.3]} 29. fxe5 {[%clk 0:00:06.3]}
29... Nxe5 {[%clk 0:00:54.4]} 30. Bxe5 {[%clk 0:00:01.4]} 30... Qxe5 {[%clk
0:00:55.3]} 31. Re1 {[%clk 0:00:01.7]} 31... Qf5 {[%clk 0:00:53.7]} 0-1

[Event "Late-Titled-Tuesday-Blitz-October-17-2023"]
[Site "Chess.com"]
[Date "2023.10.17"]
[Round "7"]
[White "Artem_Koval"]
[Black "AlexNovitz"]
[Result "1-0"]
[WhiteElo "2425"]
[BlackElo "2226"]
[TimeControl "180+1"]
[EndTime "15:15:24 PDT"]
[Termination "Artem_Koval won by checkmate"]

1. d4 {[%clk 0:03:00.9]} 1... Nf6 {[%clk 0:02:59.3]} 2. Nf3 {[%clk 0:02:59.7]}
2... e6 {[%clk 0:02:59.2]} 3. c4 {[%clk 0:02:59]} 3... Bb4+ {[%clk 0:02:58.1]}
4. Bd2 {[%clk 0:02:58]} 4... a5 {[%clk 0:02:57.7]} 5. g3 {[%clk 0:02:52.9]} 5...
b6 {[%clk 0:02:57.6]} 6. Bg2 {[%clk 0:02:52.6]} 6... Bb7 {[%clk 0:02:57.8]} 7.
O-O {[%clk 0:02:53.2]} 7... O-O {[%clk 0:02:56.3]} 8. a3 {[%clk 0:02:53.3]} 8...
Bxd2 {[%clk 0:02:50.3]} 9. Nbxd2 {[%clk 0:02:54.2]} 9... d6 {[%clk 0:02:49.9]}
10. Qc2 {[%clk 0:02:54.1]} 10... Nbd7 {[%clk 0:02:48.5]} 11. b4 {[%clk
0:02:54.5]} 11... e5 {[%clk 0:02:43.6]} 12. Rfd1 {[%clk 0:02:30.7]} 12... exd4
{[%clk 0:02:42]} 13. Nxd4 {[%clk 0:02:30.4]} 13... Bxg2 {[%clk 0:02:40.9]} 14.
Kxg2 {[%clk 0:02:31.3]} 14... Ne5 {[%clk 0:02:21.2]} 15. N2f3 {[%clk 0:02:18.4]}
15... Nxf3 {[%clk 0:02:17.9]} 16. Kxf3 {[%clk 0:02:10.3]} 16... axb4 {[%clk
0:02:07.2]} 17. axb4 {[%clk 0:02:09.7]} 17... Rxa1 {[%clk 0:02:07.6]} 18. Rxa1
{[%clk 0:02:10.3]} 18... Qd7 {[%clk 0:01:57.7]} 19. Qf5 {[%clk 0:02:06]} 19...
c5 {[%clk 0:01:41.7]} 20. Qxd7 {[%clk 0:02:01.4]} 20... Nxd7 {[%clk 0:01:42.6]}
21. bxc5 {[%clk 0:01:52.6]} 21... dxc5 {[%clk 0:01:34.8]} 22. Nc6 {[%clk
0:01:43.7]} 22... f6 {[%clk 0:01:12.1]} 23. Ra7 {[%clk 0:01:38.9]} 23... Ne5+
{[%clk 0:01:07.7]} 24. Nxe5 {[%clk 0:01:39.5]} 24... fxe5+ {[%clk 0:01:08.6]}
25. Ke3 {[%clk 0:01:40]} 25... Rf6 {[%clk 0:01:05.6]} 26. Re7 {[%clk 0:01:29.5]}
26... Kf8 {[%clk 0:00:45.9]} 27. Rxe5 {[%clk 0:01:29.7]} 27... Kf7 {[%clk
0:00:46.5]} 28. f4 {[%clk 0:01:27.3]} 28... Rd6 {[%clk 0:00:45.3]} 29. Rd5
{[%clk 0:01:18.1]} 29... Re6+ {[%clk 0:00:41.9]} 30. Kf3 {[%clk 0:01:10]} 30...
Ke7 {[%clk 0:00:40.1]} 31. Re5 {[%clk 0:00:57.2]} 31... Rxe5 {[%clk 0:00:26.6]}
32. fxe5 {[%clk 0:00:58.1]} 32... Ke6 {[%clk 0:00:25.6]} 33. Ke4 {[%clk
0:00:58.5]} 33... g5 {[%clk 0:00:24.9]} 34. g4 {[%clk 0:00:58.1]} 34... h6
{[%clk 0:00:22.9]} 35. h3 {[%clk 0:00:58.5]} 35... Ke7 {[%clk 0:00:18.8]} 36.
Kd5 {[%clk 0:00:58.7]} 36... Kd7 {[%clk 0:00:19.3]} 37. e6+ {[%clk 0:00:55.9]}
37... Ke7 {[%clk 0:00:19.6]} 38. Ke5 {[%clk 0:00:55.9]} 38... Ke8 {[%clk
0:00:20]} 39. Kd6 {[%clk 0:00:55.9]} 39... Kd8 {[%clk 0:00:20]} 40. e7+ {[%clk
0:00:50.8]} 40... Ke8 {[%clk 0:00:20.1]} 41. Ke6 {[%clk 0:00:51.1]} 41... b5
{[%clk 0:00:19.4]} 42. cxb5 {[%clk 0:00:50.8]} 42... c4 {[%clk 0:00:20.3]} 43.
b6 {[%clk 0:00:51.6]} 43... c3 {[%clk 0:00:21.2]} 44. b7 {[%clk 0:00:52.5]}
44... c2 {[%clk 0:00:21.9]} 45. b8=Q# {[%clk 0:00:53.4]} 1-0

[Event "Late-Titled-Tuesday-Blitz-October-17-2023"]
[Site "Chess.com"]
[Date "2023.10.17"]
[Round "7"]
[White "Arash_Tahbaz"]
[Black "vugarrasulov"]
[Result "1-0"]
[WhiteElo "2916"]
[BlackElo "2957"]
[TimeControl "180+1"]
[EndTime "15:15:25 PDT"]
[Termination "Arash_Tahbaz won by checkmate"]

1. Nf3 {[%clk 0:03:00.9]} 1... c5 {[%clk 0:03:00.9]} 2. g3 {[%clk 0:03:01.4]}
2... Nc6 {[%clk 0:03:00.1]} 3. Bg2 {[%clk 0:03:02]} 3... g6 {[%clk 0:03:00.3]}
4. O-O {[%clk 0:03:02.6]} 4... Bg7 {[%clk 0:03:01]} 5. c4 {[%clk 0:03:03.2]}
5... d6 {[%clk 0:03:00.2]} 6. Nc3 {[%clk 0:03:03.7]} 6... Nh6 {[%clk 0:02:56.5]}
7. d4 {[%clk 0:03:03.2]} 7... cxd4 {[%clk 0:02:55.1]} 8. Nxd4 {[%clk 0:02:47.1]}
8... Nxd4 {[%clk 0:02:51.6]} 9. Bxh6 {[%clk 0:02:47.7]} 9... Nxe2+ {[%clk
0:02:44.6]} 10. Qxe2 {[%clk 0:02:48.6]} 10... Bxh6 {[%clk 0:02:45]} 11. Rfe1
{[%clk 0:02:48.9]} 11... Bg7 {[%clk 0:02:37.6]} 12. Rad1 {[%clk 0:02:48.1]}
12... Be5 {[%clk 0:02:02.3]} 13. Qd2 {[%clk 0:02:12]} 13... Bg4 {[%clk
0:01:49.1]} 14. Bxb7 {[%clk 0:01:22.4]} 14... O-O {[%clk 0:01:48.7]} 15. Bxa8
{[%clk 0:01:17.5]} 15... Qxa8 {[%clk 0:01:44.5]} 16. Nd5 {[%clk 0:01:18.1]}
16... e6 {[%clk 0:01:37.9]} 17. Rxe5 {[%clk 0:01:17.9]} 17... exd5 {[%clk
0:01:10.2]} 18. Rxd5 {[%clk 0:01:18.8]} 18... Bxd1 {[%clk 0:01:10.4]} 19. Qxd1
{[%clk 0:01:19.7]} 19... Qb7 {[%clk 0:00:44.8]} 20. b3 {[%clk 0:01:18.6]} 20...
Qa6 {[%clk 0:00:35.6]} 21. Qd2 {[%clk 0:01:17.2]} 21... Re8 {[%clk 0:00:26]} 22.
Rxd6 {[%clk 0:01:12.7]} 22... Qc8 {[%clk 0:00:26.9]} 23. Kg2 {[%clk 0:01:11.2]}
23... h5 {[%clk 0:00:26.7]} 24. h4 {[%clk 0:01:11.2]} 24... Kg7 {[%clk
0:00:09.4]} 25. Qd4+ {[%clk 0:01:11.4]} 25... Kg8 {[%clk 0:00:08.7]} 26. Qd5
{[%clk 0:01:11.6]} 26... Kg7 {[%clk 0:00:08]} 27. Rd7 {[%clk 0:01:05.4]} 27...
Rf8 {[%clk 0:00:08.5]} 28. Rxa7 {[%clk 0:01:05.5]} 28... Qg4 {[%clk 0:00:08.2]}
29. c5 {[%clk 0:01:01.6]} 29... Qb4 {[%clk 0:00:06.5]} 30. c6 {[%clk 0:00:58.2]}
30... Qc3 {[%clk 0:00:07.1]} 31. Rd7 {[%clk 0:00:57.9]} 31... Qc2 {[%clk
0:00:05.1]} 32. c7 {[%clk 0:00:57.2]} 32... Qxa2 {[%clk 0:00:04.4]} 33. c8=Q
{[%clk 0:00:55.5]} 33... Qxf2+ {[%clk 0:00:03.4]} 34. Kxf2 {[%clk 0:00:55.3]}
34... Re8 {[%clk 0:00:04.3]} 35. Qxf7+ {[%clk 0:00:54.4]} 35... Kh6 {[%clk
0:00:05.2]} 36. Qg7# {[%clk 0:00:54.3]} 1-0